Cogmind - Beta 10.2 @@@ ROGUE MODE // 2022.02.05 @ 09:54:22 Player: Zach Result: Destroyed by S-10 Pest with Light Assault Rifle Performance ------------- Evolutions (0) 0 Regions Visited (1) 200 Robots Destroyed (11) 55 Value Destroyed (213) 213 Prototype IDs (0) 0 Alien Tech Used (0) 0 Bonus (0) 0 TOTAL SCORE: 468 Bonus ------- None Cogmind --------- Core Integrity 0/250 Matter 248/300 Energy 2/100 System Corruption 2% Temperature Cool (0) Movement Core (50) Location -10/Materials Parts ------- > --- POWER (1) -------- (None) > --- PROPULSION (2) --- (None) > --- UTILITY (2) ------ Signal Interpreter ECM Suite > --- WEAPON (2) ------- (None) > --- INVENTORY (4) ---- Aluminum Leg High-capacity Battery (50) Peak State ------------ > --- POWER ------------ Ion Engine > --- PROPULSION ------- Aluminum Leg Aluminum Leg > --- UTILITY ---------- Small Storage Unit ECM Suite > --- WEAPON ----------- Small Laser Small Laser > --- INVENTORY -------- (None) [Rating: 7] Favorites ----------- Power Ion Engine Engine Ion Engine Propulsion Aluminum Leg Leg Aluminum Leg Utility ECM Suite Device ECM Suite Storage Small Storage Unit Processor Signal Interpreter Weapon Small Laser Energy Gun Small Laser Launcher Grenade Launcher Special Weapon Mining Laser Build | -11 -10 ------- Run | Scr Mat Slots Evolved . | . . Power . | . . Propulsion . | . . Utility . | . . Weapon . | . . Parts Attached 14 | 6 8 Power 2 | 1 1 Engine 2 | 1 1 Core . | . . Reactor . | . . Propulsion 3 | 2 1 Treads . | . . Leg 3 | 2 1 Wheel . | . . Hover . | . . Flight . | . . Utility 5 | 1 4 Device 2 | . 2 Storage 2 | 1 1 Processor 1 | . 1 Hackware . | . . Protection . | . . Artifact . | . . Weapon 4 | 2 2 Energy Gun 2 | 2 . Energy Cannon . | . . Ballistic Gun . | . . Ballistic Cannon . | . . Launcher 1 | . 1 Special Weapon 1 | . 1 Impact Weapon . | . . Slashing Weapon . | . . Piercing Weapon . | . . Special Melee Weapon . | . . Unidentified Prototypes . | . . Parts Lost 5 | . 5 Power 1 | . 1 Propulsion 2 | . 2 Utility . | . . Weapon 2 | . 2 Highest Loss Streak 4 | . 4 Average Slot Usage (%) 86 | . 86 Engine 11 | . 11 Leg 26 | . 26 Device 11 | . 11 Storage 7 | . 7 Processor 7 | . 7 Energy Gun 12 | . 12 Launcher 4 | . 4 Special Weapon 3 | . 3 Naked Turns . | . . Heaviest Build 14 | 11 14 Greatest Support 20 | 20 20 Greatest Overweight (x) . | . . Average Overweight (x) . | . . Largest Inventory Capacity 6 | 6 6 Average Capacity 5 | 5 4 Most Carried 6 | 4 6 Average Carried 1 | . 1 Final Capacity 6 | 6 4 Final Carried 2 | . 2 Class Distribution -------------------- 100% | Mutant Dominant Class ---------------- Mutant | -10/Materials Resources | -11 -10 ----------- Run | Scr Mat Matter Collected 285 | 209 76 Remotely . | . . Salvage Created 206 | . 206 Parts 19 | . 19 Haulers Intercepted . | . . Recyclers Shooed 3 | . 3 Parts Field Recycled . | . . Retrieved Matter . | . . Parts Self-Destructed . | . . Prevented . | . . Kills | -11 -10 ------- Run | Scr Mat Combat Hostiles Destroyed 8 | . 8 Guns 1 | . 1 Cannons 1 | . 1 AOE 6 | . 6 Classes Destroyed 5 | . 5 Builder 1 | . 1 Recycler 1 | . 1 Watcher 1 | . 1 Swarmer 4 | . 4 Grunt 4 | . 4 Best Kill Streak 10 | . 10 Combat Bots Only 5 | . 5 Max Kills in Single Turn 4 | . 4 Gunslinging . | . . Exploded 4 | . 4 Melee . | . . Uniques/NPCs Destroyed . | . . Combat | -11 -10 -------- Run | Scr Mat Damage Taken 719 | . 719 Core 253 | . 253 Absorbed by Shields . | . . Core Remaining (%) 100 | 100 . Volleys Fired 14 | . 14 Largest 2 | . 2 Hottest 140 | . 140 Shots Fired 23 | . 23 Gun 12 | . 12 Cannon . | . . Launcher 7 | . 7 Special 4 | . 4 Kinetic . | . . Thermal 16 | . 16 Explosive 7 | . 7 Electromagnetic . | . . Robot Hit Streak 6 | . 6 Robot Miss Streak 4 | . 4 Penetration Max . | . . Secondary Targets . | . . Shots Hit Robots 12 | . 12 Core Hits 19 | . 19 Critical Hits . | . . Critical Kills . | . . Critical Parts Destroyed . | . . Melee Attacks . | . . Impact . | . . Slashing . | . . Piercing . | . . Sneak Attacks . | . . Combat Hostiles . | . . Follow-up Attacks . | . . Damage Inflicted 683 | . 683 Guns 81 | . 81 Cannons . | . . Explosions 560 | . 560 Melee . | . . Ramming 18 | . 18 Kinetic . | . . Thermal 105 | . 105 Explosive 560 | . 560 Electromagnetic . | . . Impact . | . . Slashing . | . . Piercing . | . . Highest Corruption 2 | . 2 Average Corruption 2 | . 2 Corruption Purged . | . . Overload Shots . | . . Overflow Damage . | . . Projectiles . | . . Explosions . | . . Melee . | . . Knockbacks . | . . Impact . | . . Kinetic . | . . Secondary . | . . Self-Inflicted Damage 32 | . 32 Shots 1 | . 1 Rammed 8 | . 8 Targets Rammed 12 | . 12 Kicked 4 | . 4 Crushed . | . . Highest Temperature 120 | . 120 Average Temperature 44 | . 44 Received Heat Transfer 60 | . 60 Siege Activations . | . . Robots Corrupted . | . . Combat Hostiles . | . . Parts Fried . | . . Impact Corruptions . | . . Robots Melted . | . . Combat Hostiles . | . . Parts Melted . | . . Heat Transferred 225 | . 225 Parts Sabotaged . | . . Parts Stolen . | . . Parts Stripped . | . . Power Chain Reactions . | . . Missiles Intercepted . | . . Alert | -11 -10 ------- Run | Scr Mat Peak Influence 272 | . 272 Initial . | . . Average 121 | . 162 Maximum Alert Level 1 | . 1 Low Security (%) 73 | 100 65 Level 1 26 | . 34 Level 2 . | . . Level 3 . | . . Level 4 . | . . Level 5 . | . . High Security . | . . Max Security . | . . Squads Dispatched . | . . Investigation . | . . Extermination . | . . Reinforcement . | . . Assault . | . . Garrison . | . . Intercept . | . . Construction Impeded . | . . Haulers Reinforced . | . . Stealth | -11 -10 --------- Run | Scr Mat Distress Signals 1 | . 1 Communications Jammed . | . . Distress Signals . | . . Times Spotted 16 | . 16 Peak Tracking Total 6 | . 6 Tactical Retreats 1 | . 1 Traps | -11 -10 ------- Run | Scr Mat Traps Triggered . | . . Indirectly . | . . Trap Hack Attempts . | . . Triggered . | . . Disarmed . | . . Reprogrammed . | . . Reused . | . . Traps Extracted . | . . Installed . | . . Triggered . | . . Machines | -11 -10 ---------- Run | Scr Mat Machines Disabled 1 | . 1 Max in Single Turn 1 | . 1 Machines Sabotaged . | . . Garrisons Compromised . | . . Overloaded Fab Kills . | . . Fab Network Shutdowns . | . . Hacking | -11 -10 --------- Run | Scr Mat Machines Accessed . | . . Terminals . | . . Fabricators . | . . Repair Stations . | . . Recycling Units . | . . Scanalyzers . | . . Garrison Access . | . . Total Hacks . | . . Successful . | . . Failed . | . . Catastrophic . | . . Database Lockouts . | . . Manual . | . . Terminals . | . . Fabricators . | . . Repair Stations . | . . Recycling Units . | . . Scanalyzers . | . . Garrison Access . | . . Terminal Hacks . | . . Fabricator Hacks . | . . Repair Station Hacks . | . . Recycling Unit Hacks . | . . Scanalyzer . | . . Garrison Access Hacks . | . . Unauthorized Hacks . | . . Terminals . | . . Fabricators . | . . Repair Stations . | . . Recycling Units . | . . Scanalyzers . | . . Garrison Access . | . . Data Cores Recovered . | . . Used . | . . Hacking Detections . | . . Full Trace Events . | . . Feedback Events . | . . Feedback Blocked . | . . Robot Schematics Acquired . | . . Robots Built . | . . Matter . | . . Time . | . . Total Robot Build Rating . | . . Part Schematics Acquired . | . . Parts Built . | . . Matter . | . . Time . | . . Total Part Build Rating . | . . Parts Repaired . | . . Time . | . . Parts Recycled . | . . Recycled Matter . | . . Retrieved Matter . | . . Retrieved Components . | . . Parts Scanalyzed . | . . Part Schematics Acquired . | . . Parts Damaged . | . . Bothacking | -11 -10 ------------ Run | Scr Mat Used RIF Installer . | . . Robots Hacked . | . . Non-combat . | . . Combat . | . . Robot Hacks Applied . | . . Relay Couplers Released . | . . Robots Rewired . | . . Allies Hacked . | . . Hacks Repelled . | . . Allies | -11 -10 -------- Run | Scr Mat Total Allies . | . . Largest Group . | . . Highest-Rated Group . | . . Highest-Rated Ally . | . . Total Orders . | . . Ally Attacks . | . . Total Damage . | . . Kills . | . . Allies Corrupted . | . . Allies Melted . | . . Intel | -11 -10 ------- Run | Scr Mat Robot Analysis Total . | . . Derelict Logs Recovered . | . . Drone Launches . | . . Drone Recoveries . | . . Exploration | -11 -10 ------------- Run | Scr Mat Turns Passed 445 | 112 333 Spaces Moved 292 | 90 202 Core 13 | 13 . Treads . | . . Legs 279 | 77 202 Wheels . | . . Hover . | . . Flight . | . . Fastest Speed 50 | 50 120 Average Speed 116 | 109 120 Slowest Speed 120 | 120 120 Overloaded Moves . | . . Propulsion Burnouts . | . . Robots Hopped . | . . Cave-ins Triggered . | . . Exploration Rate (%) 15 | 5 25 Regions Visited 1 Branch Regions . Pre-discovered Areas . | . . Known Exits Taken . | . . Unknown Exits Taken 1 | 1 . Scrap Searched . | . . Spaces Dug . | . . Terrain Destroyed 41 | . 41 Melee . | . . Projectile 1 | . 1 AOE 40 | . 40 Terrain Rammed . | . . Walls Destroyed . | . . Machines Disabled . | . . Actions | -11 -10 --------- Run | Scr Mat Total 365 | 103 262 Wait 4 | . 4 Move 291 | 89 202 Hop . | . . Pick Up 19 | 7 12 Fast Attach . | . . Attach 11 | 6 5 Detach 1 | . 1 Swap 3 | . 3 Drop 10 | 1 9 Fire 14 | . 14 Melee . | . . Ram . | . . Kick 12 | . 12 Crush . | . . Escape Stasis . | . . Rewire . | . . Trap . | . . Miscellaneous . | . . Route ------- -11/Scrapyard -10/Materials History --------- Turn | Location | Event 25 | -11/Scrapyard | Discovered new exit (range 16) 113 | -11/Scrapyard | Entered Materials 309 | -10/Materials | Build established: Mutant 413 | -10/Materials | Core integrity fell below 50% 431 | -10/Materials | Lost 4 parts (1p1n2w) 432 | -10/Materials | Core integrity fell below 20% 446 | -10/Materials | Destroyed by S-10 Pest with Light Assault Rifle Last Messages --------------- 00279_ K-01 Serf cleans the Atomic Centrifuge. 00306_ U-05 Engineer lays Concrete. 00306_ K-01 Serf cleans the Atomic Centrifuge. 00317_ Acquired Mining Laser. 00349_ Acquired Hcp. Battery. 00360_ S-10 Pest destroyed. 00370_ Sml. Laser destroyed. 00378_ Dropped ECM Suite. 00382_ Slammed into S-10 Pest. 00388_ Lgt. Ion Engine destroyed. 00388_ System corrupted by crushing effect (+2). 00389_ Slammed into S-10 Pest. 00390_ Kicked S-10 Pest out of the way. 00393_ Mining Laser destroyed. 00393_ Kicked S-10 Pest out of the way. 00394_ Slammed into S-10 Pest. 00400_ Aluminum Leg destroyed. 00401_ Acquired ECM Suite. 00435_ Kicked R-06 Scavenger out of the way. 00445_ Aluminum Leg destroyed. Map ----- +----------------------------------------------------+ | ?????????????????????????????????????????????????? | | ?????????????????????????????????????????????????? | | ?????????????????????????????????????????????????? | | ?????????????????????????????????????????????????? | | ??????????????????#####??????????????????????????? | | ??????????????????# ########???????????????????? | | ????????########### # #???????????????????? | | ????????# # # #???????????????????? | | ????????# # + #???????????????????? | | ????????# # # #???????????????????? | | ????????# =! + # #???????????????????? | | ????????# =[ # # #???????????????????? | | ????????# = # ########???????????????????? | | ????????# # #??????????????????????????? | | ????????# # #??????????????????????????? | | ????????########## ##?#???????????????????????? | | ?????????????????## # ######??????????????????? | | ?????????????????## # #??????????????????? | | ???????????######## ### ######?????????????? | | ???????????# # ^ ????????????? | | ???????????# # % ????????????? | | ???????????# """ # = = | %! ????????????? | | ???????????# "" + =############+??????????????? | | ???????????# """ # ## # #????????????? | | ???????????# # ##! """ # #????????????? | | ???????????##### ## ##*@""" #?? ??????????????? | | ???????????####### #!*""" #??????????????????? | | ??????????# T # * #??????????????????? | | ??????????# "" + """ #??????????????????? | | ??????????# # """ #??????????????????? | | ??????????## ##### # """ ###########????????? | | ???????????#?????####### # #????????? | | ???????????????????????# """ # """"" #????????? | | ???????????????????????# """ # """"" #????????? | | ???????????????????????#ss""" # """"" #????????? | | ???????????????????????# # #????????? | | ?????????????????????###+###### #????????? | | ?????????????????????# ########/####### !# | | ?????????????????????# # !!#? | | ?????????????????????# / #???? | | ?????????????????????# # #???? | | ?????????????????????# ## #???? | | ?????????????????????# ## #???? | | ?????????????????????# ## #???? | | ?????????????????????# ################ #???? | | ?????????????????????# #???????????????? + ??? | | ?????????????????????######????????????????? # ??? | | ?????????????????????????????????????????????#???? | | ?????????????????????????????????????????????????? | | ?????????????????????????????????????????????????? | +----------------------------------------------------+ Best States ------------- Heat Dissipation 25 Energy Generation 10 Energy Capacity 525 Matter Stores 249 Matter Capacity 300 Sight Range 16 Terrain Scan Density 10 ECM Strength 1 Evasion (%) 50 Item Schematics ----------------- None Robot Schematics ------------------ None Fabricated ------------ Nothing Alien Tech Used ----------------- None Achievements -------------- None Challenges ------------ None Game ------ Seed SpreadArmageddonCleaver Manual? 0 Play Time 00:11:02 Cumulative 3.8 hours Start 2022.02.05 @ 09:43:57 End 2022.02.05 @ 09:54:22 Sessions 1 Manual Loads 0 Difficulty Rogue Special Mode None Game No. 4 Rogue 4 Adventurer 0 Explorer 0 Win Type - Total 0 Types 0/0/0/0/0/0/0/0/0 Lore% 1 Gallery% 7 Achievement% 5 Wizard Run 0 Options --------- ASCII 0 Keyboard 0 Movement Arrows Keybinds 0 Fullscreen 1 Font 18/SmallcapsGlow Map View 76x50 Tactical HUD 1 Map Filters NONE Filters NONE Steam 1 RUN: 3fcac5db-42b6-484d-be26-db193f4344cd